[Event "13th Asrian Memorial 2022"]
[Site "Yerevan"]
[Date "2022.06.10"]
[Round "4.3"]
[White "Davtyan, Arsen"]
[Black "Hayrapetyan, Hovik"]
[Result "0-1"]
[ECO "B51"]
[WhiteElo "2308"]
[BlackElo "2484"]
[Annotator "TA"]
[PlyCount "110"]
[EventDate "2022.06.07"]
[EventType "swiss"]
[EventCountry "ARM"]
[SourceTitle "playchess.com"]
[Source "ChessBase"]
[SourceQuality "1"]
[TimeControl "40/5400+30:1800+30"]

{[%evp 9,110,9,11,12,31,34,33,29,37,34,56,51,55,50,51,55,86,90,90,75,105,99,97,102,87,88,100,102,124,124,124,131,131,129,125,126,131,123,125,123,125,131,122,114,108,101,99,95,95,95,142,136,122,123,130,129,123,113,172,175,196,196,246,62,56,76,104,90,86,41,91,0,0,0,52,-9,-5,-2,0,-30,0,-23,-31,-143,-132,-118,-102,-254,-229,-281,-286,-631,-624,-1112,-525,-546,-545,-796,-779,-1072,-1061,-1741,-1726]} 1. e4 {[%emt 0:29:02]} c5 {[%emt 0:00:09]} 2. Nf3 {[%emt 0:00:08]} d6 {[%emt 0:00:06]} 3. Bb5+ {[%emt 0:00:09]} Nd7 {[%emt 0:00:21]} 4. a4 {[%emt 0:00:10][%cal Ba2a4,Ba4a5][%mdl 32]} Ngf6 {[%emt 0:02:33]} 5. Nc3 {[%emt 0:00:11]} a6 {[%emt 0:00:59]} 6. Be2 {[%emt 0:00:25] B51: Sicilian: Moscow Variation (3 Bb5+) without 3...Bd7.} g6 {[%emt 0:02:32]} 7. a5 {[%emt 0:00:56]} Bg7 {[%emt 0:00:34]} 8. O-O {[%emt 0:00:14] White is slightly better.} O-O {[%emt 0:01:05]} 9. d3 {[%emt 0:01:00]} e5 {[%emt 0:12:53]} 10. Nd2 {[%emt 0:03:22]} b5 {[%emt 0:07:00]} 11. axb6 $1 {[%emt 0:01:28]} Nxb6 {[%emt 0:00:02]} 12. Nc4 {[%emt 0:10:24] [#]} Be6 $146 {[%emt 0:18:00]} ({Predecessor:} 12... Rb8 13. Na5 Qc7 14. f4 exf4 15. Bxf4 Nfd7 16. Qd2 Ne5 17. Bh6 Bxh6 18. Qxh6 f5 {0-1 (32) Garifullina,L (2375)-Remizov,Y (2411) Khanty-Mansiysk 2021}) 13. Be3 {[%emt 0:12:58]} Qb8 {[%emt 0:01:14]} 14. Ra3 {[%emt 0:02:41]} Rc8 {[%emt 0:07:16]} 15. Rb3 {[%emt 0:04:07]} Nfd7 {[%emt 0:04:54]} 16. Na4 {[%emt 0:30:20]} Rc6 17. Bg4 Bxc4 {[%emt 0:03:35]} 18. dxc4 {[%emt 0:02:13]} Nf6 {[%emt 0:00:01]} 19. Be2 {[%emt 0:01:21]} Ra7 {[%emt 0:06:07]} 20. Nc3 {[%emt 0:03:18]} Rb7 {[%emt 0:00:15]} 21. Ra3 {[%emt 0:01:13]} Na8 {[%emt 0:00:38]} 22. b3 {[%emt 0:08:10]} Nc7 {[%emt 0:00:24]} 23. h3 {[%emt 0:00:18]} Rcb6 {[%emt 0:03:21]} 24. Qd2 {[%emt 0:01:44]} Qc8 {[%emt 0:06:04]} 25. Raa1 {[%emt 0:05:25]} Rb8 {[%emt 0:01:11]} 26. Rae1 {[%emt 0:02:58]} Qb7 {[%emt 0:03:42]} 27. Bf3 {[%emt 0:01:40]} Ne6 {[%emt 0:02:26]} 28. g3 {[%emt 0:00:04]} Nd4 {[%emt 0:00:57]} 29. Bg2 {[%emt 0:00:05]} Re8 {[%emt 0:02:59]} (29... Qc8 $142) 30. Bg5 $16 {[%emt 0:02:00]} Rc6 {[%emt 0:00:42]} 31. f4 {[%emt 0:00:50]} Nh5 {[%emt 0:00:27]} 32. Bh4 {[%emt 0:01:14]} exf4 {[%emt 0:01:05]} 33. gxf4 {[%emt 0:00:50]} Rcc8 {[%emt 0:01:14]} (33... Bf6 $2 34. Bxf6 Nxf6 35. e5 dxe5 36. fxe5 $18 (36. Bxc6 Qxc6 37. Rxe5 Rxe5 $16)) (33... a5 $16) 34. Nd5 $18 {[%emt 0:00:38]} Kh8 {[%emt 0:00:17]} 35. c3 $1 {[%emt 0:01:58]} Nc6 {[%emt 0:00:28]} (35... Nxb3 {might work better.} 36. Qa2 Rb8) 36. Qc2 $2 {[%emt 0:01:49]} (36. Bf3 $18) 36... Rb8 $14 {[%emt 0:00:09]} 37. Rb1 {[%emt 0:00:12]} Qd7 {[%emt 0:00:09]} 38. Kh2 {[%emt 0:00:49]} Bh6 {[%emt 0:01:20]} 39. Qd2 {[%emt 0:05:02] And now Bf3 would win.} Ne7 $1 {[%emt 0:00:39]} 40. Bf3 {[%emt 0:02:46]} (40. Bf6+ $16 Bg7 41. Bxe7 Rxe7 42. Bf3 (42. Nxe7 Qxe7 43. Kg1 Bh6 $14)) 40... Nxd5 $11 {[%emt 0:00:19]} 41. Bxh5 {[%emt 0:00:36]} Nc7 {[%emt 0:08:50]} (41... Bxf4+ $2 42. Rxf4 Nxf4 43. Bf6+ Kg8 44. Qxf4 $18) (41... Nxf4 $11 42. Bg4 f5 43. exf5 gxf5 44. Bf6+ (44. Bd1 $2 Qg7 $19) 44... Bg7 45. Bxf5 Qxf5 46. Bxg7+ Kxg7 47. Qxf4 Qxf4+ 48. Rxf4 a5) 42. Bf3 {[%emt 0:03:37]} ({Better is} 42. Bf6+ $14 Bg7 43. Bg4) 42... Ne6 {[%emt 0:01:50]} 43. Bg3 {[%emt 0:01:38]} Rb6 {[%emt 0:03:30]} 44. Bg4 {[%emt 0:08:53]} Qe7 {[%emt 0:04:00]} 45. Qd3 {[%emt 0:04:16]} Bg7 {[%emt 0:01:17]} 46. e5 {[%emt 0:07:53] [#]} (46. Kh1 $15) 46... dxe5 $1 $17 {[%emt 0:00:59] Hoping for ...f5.} 47. f5 {[%emt 0:02:27]} Nf4 {[%emt 0:00:20]} 48. Bxf4 {[%emt 0:01:05]} (48. Qe4 $17) 48... exf4 $19 {[%emt 0:00:04]} 49. Rfe1 {[%emt 0:01:36] [#]} Be5 $1 {[%emt 0:00:36]} 50. Re4 $2 {[%emt 0:01:49]} (50. fxg6 hxg6 51. Kh1) 50... Rd6 {[%emt 0:01:52] Black is clearly winning.} 51. Qf1 {[%emt 0:02:10]} Rd2+ {[%emt 0:04:45]} (51... gxf5 $142 52. Bxf5 Qg5) 52. Kh1 {[%emt 0:00:27]} h5 {[%emt 0:00:11]} 53. Bf3 {[%emt 0:00:33]} Qh4 {[%emt 0:04:19] Strongly threatening ...Rf2.} 54. Bg2 {[%emt 0:01:38]} Rf2 {[%emt 0:00:14]} 55. Qg1 {[%emt 0:00:46]} gxf5 {[%emt 0:01:25] Quite a comeback for Black.  Weighted Error Value: White=0.51/Black=0.16 (very precise)} 0-1

[Event "13th Asrian Memorial 2022"]
[Site "Yerevan"]
[Date "2022.06.10"]
[Round "4.4"]
[White "Petrosian, Tigran L."]
[Black "Melkumyan, Hrant"]
[Result "1/2-1/2"]
[WhiteElo "2553"]
[BlackElo "2655"]
[Annotator "TA"]
[PlyCount "32"]
[EventDate "2022.06.07"]
[EventType "swiss"]
[EventCountry "ARM"]
[SourceTitle "playchess.com"]
[Source "ChessBase"]
[SourceQuality "1"]
[TimeControl "40/5400+30:1800+30"]

{[%evp 12,15,24,19,18,21]} 1. e4 {[%emt 0:11:43]} e5 {[%emt 0:00:56]} 2. Nf3 {[%emt 0:00:05]} Nc6 {[%emt 0:00:23]} 3. Bb5 {[%emt 0:00:35]} Nf6 {[%emt 0:00:17]} 4. O-O {[%emt 0:00:39][%cal Bh1f1,Bf1e1,Be1e5][%mdl 32]} Nxe4 {[%emt 0:00:15]} 5. Re1 {[%emt 0:00:07]} Nd6 {[%emt 0:00:12]} 6. Nxe5 {[%emt 0:00:11]} Be7 {[%emt 0:00:12]} 7. Bf1 {[%emt 0:00:13]} Nxe5 {[%emt 0:01:03] C67: Ruy Lopez: Berlin Defence: 4 0-0 Nxe4.} 8. Rxe5 {[%emt 0:00:13] [#] An uneventful encounter.} {Predecessor:} O-O $146 9. Nc3 Bf6 10. Re1 Re8 11. Nd5 Rxe1 12. Qxe1 b6 13. Nxf6+ Qxf6 14. d3 Bb7 15. Qc3 Qxc3 16. bxc3 Ne8 {½-½ (40) Wang,H (2744)-Anand,V (2751) Stavanger 2022} 1/2-1/2

[Event "13th Asrian Memorial 2022"]
[Site "Yerevan"]
[Date "2022.06.10"]
[Round "4.5"]
[White "Gharibyan, Mamikon"]
[Black "Tabatabaei, M. Amin"]
[Result "0-1"]
[ECO "A25"]
[WhiteElo "2487"]
[BlackElo "2650"]
[Annotator "TA"]
[PlyCount "112"]
[EventDate "2022.06.07"]
[EventType "swiss"]
[EventCountry "ARM"]
[SourceTitle "playchess.com"]
[Source "ChessBase"]
[SourceQuality "1"]
[TimeControl "40/5400+30:1800+30"]

{[%evp 13,112,13,15,7,20,6,13,5,2,3,19,19,7,0,27,0,16,7,0,0,0,0,0,4,11,6,11,9,24,5,33,24,23,7,0,0,0,0,0,-6,0,0,0,0,0,-32,-50,-62,-62,-62,-65,-72,-60,-85,-94,-329,-337,-344,-314,-612,-191,-191,-191,-192,-192,-212,-207,-207,-192,-206,-202,-217,-217,-212,-211,-204,-204,-567,-554,-544,-497,-590,-590,-576,-531,-823,-808,-792,-792,-926,-805,-789,-774,-759,-699,-1140,-1100,-962,-629,-1377,-1113]} 1. c4 {[%emt 0:00:04]} e5 {[%emt 0:09:32]} 2. g3 {[%emt 0:00:34]} Nc6 {[%emt 0:00:39]} 3. Bg2 {[%emt 0:00:39]} g6 {[%emt 0:00:07]} 4. Nc3 {[%emt 0:01:09]} Bg7 {[%emt 0:00:09]} 5. d3 {[%emt 0:08:53]} d6 {[%emt 0:00:21]} 6. Rb1 {[%emt 0:01:48]} a5 {[%emt 0:00:19]} 7. a3 {[%emt 0:02:08]} Nge7 {[%emt 0:00:31]} 8. b4 {[%emt 0:02:56] A25: English Opening vs King's Indian with ...Nc6 but without early d3.} axb4 {[%emt 0:00:10]} 9. axb4 {[%emt 0:00:04]} Nd4 {[%emt 0:00:11]} 10. e3 {[%emt 0:11:27] The position is equal.} Ne6 {[%emt 0:00:16]} 11. Nge2 {[%emt 0:04:32] [#]} h5 $146 {[%emt 0:00:30]} ({Predecessor:} 11... O-O 12. O-O h5 13. e4 c6 14. Be3 Nd4 15. Rb2 Bg4 16. h3 Be6 17. Bxd4 exd4 {½-½ (48) Lobron,E (2590)-Hracek,Z (2650) Nussloch 1996}) 12. h4 {[%emt 0:01:41]} O-O {[%emt 0:02:03]} 13. O-O {[%emt 0:04:04]} c6 {[%emt 0:02:00]} 14. b5 {[%emt 0:00:58]} d5 {[%emt 0:01:14]} 15. bxc6 {[%emt 0:01:49]} bxc6 {[%emt 0:00:09]} 16. Qc2 {[%emt 0:07:10]} dxc4 {[%emt 0:03:21]} 17. dxc4 {[%emt 0:01:23]} Nc5 {[%emt 0:00:11] Against Na4} 18. Rd1 {[%emt 0:01:21]} Bd7 {[%emt 0:12:45]} 19. Ne4 {[%emt 0:06:16]} Nxe4 {[%emt 0:00:16]} 20. Bxe4 {[%emt 0:00:03] [#] Rb7 is the strong threat.} Qc7 {[%emt 0:00:19] Inhibits Rb7.} 21. Bd2 {[%emt 0:02:16][%cal Bc1d2,Bd2b4,Bb4c5,Bc5b6][%mdl 32]} Rfd8 {[%emt 0:02:10]} 22. Bb4 {[%emt 0:00:39]} Nf5 {[%emt 0:02:28]} 23. Bc5 {[%emt 0:02:54] And now Bb6 would win.} Be6 {[%emt 0:00:53]} 24. Rxd8+ Qxd8 {[%emt 0:01:59]} (24... Rxd8 $2 25. Bb6 Qe7 26. Bxd8 (26. Bxc6 Rc8 $11) 26... Qxd8 27. Bxc6 $18) 25. Bb6 {[%emt 0:16:54]} Qc8 {[%emt 0:07:20]} 26. Rd1 {[%emt 0:01:43] [#] Prevents Nd6. aiming for Rd8+.} Qa6 {[%emt 0:09:46][%csl LRb6,LRc4]} 27. c5 {[%emt 0:00:27]} ({Not} 27. Bxc6 $2 Rc8 28. Nc3 Rxc6 $19) 27... Ne7 {[%emt 0:00:05]} 28. Nc3 {[%emt 0:01:39]} f5 {[%emt 0:01:57]} 29. Bg2 {[%emt 0:04:28]} (29. Bd8 $5 {[%cal Rd8e7]}) 29... e4 {[%emt 0:01:34]} 30. Bd8 {[%emt 0:05:54]} Nd5 {[%emt 0:06:29]} 31. Nxd5 {[%emt 0:02:25]} Bxd5 {[%emt 0:00:08]} 32. Be7 {[%emt 0:02:04]} Qb7 {[%emt 0:06:51]} 33. Bd6 {[%emt 0:00:41]} Ra2 {[%emt 0:00:15]} 34. Qc1 {[%emt 0:02:05] This move loses the game for White.} (34. Rb1 $17 Rxc2 35. Rxb7) 34... Qb3 $19 {[%emt 0:04:47]} 35. Bf1 {[%emt 0:04:18]} Kh7 {[%emt 0:00:44]} 36. Qb1 $2 {[%emt 0:00:29]} (36. Bf4) 36... Rb2 $2 {[%emt 0:00:12]} (36... Qa4 37. Rc1 Bb3) 37. Qc1 {[%emt 0:00:29]} Qa2 $40 {[%emt 0:01:15][%mdl 128] Black is out for blood.} 38. Bf4 {[%emt 0:00:34]} Rxf2 {[%emt 0:00:47]} 39. Qb1 {[%emt 0:00:30]} Rb2 {[%emt 0:05:10]} 40. Qxa2 {[%emt 0:00:00]} Rxa2 {[%emt 0:00:00]} ({But not} 40... Bxa2 41. Rd7 Rb1 42. Be5 $18) 41. Rb1 {[%emt 0:04:01]} Bf8 {[%emt 0:14:15]} 42. Rb7+ {[%emt 0:10:26]} Kg8 {[%emt 0:00:18]} 43. Rb8 {[%emt 0:02:59]} Kf7 {[%emt 0:00:20]} 44. Rb7+ {[%emt 0:04:57]} Ke6 {[%emt 0:01:40]} 45. Bd6 $2 {[%emt 0:00:18]} (45. Bg5) 45... Bxd6 {[%emt 0:05:14] Black is clearly winning.} 46. cxd6 {[%emt 0:00:09]} Kxd6 {[%emt 0:00:02][%mdl 4096] Endgame KRB-KRB} 47. Rg7 {[%emt 0:00:12]} c5 {[%emt 0:00:04][%cal Bc6c5,Bc5c4,Bc4c3][%mdl 32]} 48. Rxg6+ {[%emt 0:00:10]} Ke5 {[%emt 0:00:05] White must now prevent ...c4.} 49. Rg7 {[%emt 0:03:08]} c4 {[%emt 0:00:25] Hoping for ...c3.} 50. Rc7 {[%emt 0:00:06]} Rc2 {[%emt 0:00:07]} 51. Rc5 {[%emt 0:00:29]} Kd6 {[%emt 0:00:16]} 52. Rc8 {[%emt 0:03:30]} Be6 {[%emt 0:02:07]} 53. Rd8+ {[%emt 0:00:33]} Ke5 {[%emt 0:00:20]} 54. Ra8 {[%emt 0:01:06]} c3 {[%emt 0:03:19] ( -> ...Ra2)} 55. Ra5+ {[%emt 0:00:40]} Kf6 {[%emt 0:00:59]} 56. Ra6 {[%emt 0:01:08]} Rd2 {[%emt 0:00:58] Weighted Error Value: White=0.57/Black=0.22 (precise)} 0-1

[Event "13th Asrian Memorial 2022"]
[Site "Yerevan"]
[Date "2022.06.10"]
[Round "4.6"]
[White "Mkrtchian Lilit"]
[Black "Ter-Sahakyan, Samvel"]
[Result "0-1"]
[ECO "D02"]
[WhiteElo "2378"]
[BlackElo "2640"]
[Annotator "TA"]
[PlyCount "58"]
[EventDate "2022.06.07"]
[EventType "swiss"]
[EventCountry "ARM"]
[SourceTitle "playchess.com"]
[Source "ChessBase"]
[SourceQuality "1"]
[TimeControl "40/5400+30:1800+30"]

{[%evp 9,58,27,14,15,16,25,20,25,29,27,25,19,22,23,59,0,0,0,0,7,0,-118,-118,-102,-116,-129,-111,-135,-113,-359,-321,-358,-354,-475,-521,-526,-504,-534,-533,-1570,-1590,-1545,-1560,-1548,-1514,-1538,-1530,-1472,-1466,-1297,-1209]} 1. d4 {[%emt 0:00:09]} Nf6 {[%emt 0:00:06]} 2. Nf3 {[%emt 0:00:19]} d5 {[%emt 0:00:06]} 3. g3 {[%emt 0:00:20]} c5 {[%emt 0:00:37]} 4. Bg2 {[%emt 0:09:53]} cxd4 {[%emt 0:00:21]} 5. O-O {[%emt 0:00:19]} h6 {[%emt 0:00:44][%cal Bh7h6,Bh6h5][%mdl 32]} 6. b3 {[%emt 0:05:16] D02: 1 d4 d5 2 Nf3 sidelines, including 2...Nf6 3 g3 and 2...Nf6 3 Bf4.} h5 $5 {[%emt 0:00:36][%cal Oh5h4][%mdl 4] [#] Leaves trodden paths.} 7. Bb2 $146 {[%emt 0:08:58]} ({Predecessor:} 7. h3 g6 8. Nxd4 h4 9. g4 e5 10. Nb5 a6 11. N5c3 d4 12. g5 Nh7 13. Ne4 Be7 {½-½ (67) Hess,M (2392)-Lokander,M (2475) Germany 2022}) 7... Nc6 {[%emt 0:21:52]} 8. Nxd4 {[%emt 0:00:42] The position is equal.} h4 $1 {[%emt 0:00:19]} 9. Nxc6 {[%emt 0:10:11]} bxc6 {[%emt 0:00:08]} 10. Nd2 {[%emt 0:00:14]} hxg3 {[%emt 0:09:51]} 11. hxg3 {[%emt 0:00:15]} Bg4 {[%emt 0:06:37]} 12. Nf3 {[%emt 0:06:19]} ({Better is} 12. c4 $1 $14) 12... Qc8 $1 $11 {[%emt 0:01:15]} 13. Qd3 {[%emt 0:23:26]} Bf5 {[%emt 0:17:49]} 14. Qe3 {[%emt 0:02:37]} Bh3 {[%emt 0:07:10] [#] White must now prevent ...Bxg2.} 15. Ng5 {[%emt 0:07:42]} (15. Nh4 $1 $11) 15... Bxg2 $17 {[%emt 0:07:14]} 16. Kxg2 {[%emt 0:00:04]} Ng4 {[%emt 0:00:03]} 17. Qc3 {[%emt 0:00:43]} Rh2+ {[%emt 0:03:22]} 18. Kg1 {[%emt 0:00:08] [#]} Rh5 $1 $36 {[%emt 0:00:08][%mdl 2048] Black is in control.} 19. f4 {[%emt 0:07:02] Now White is beyond hope.} (19. Nf3 $17) 19... e5 $1 $19 {[%emt 0:03:01][%cal Be7e5,Be5e4][%mdl 32]} 20. Nf3 {[%emt 0:01:22][%cal Rf3e5]} e4 {[%emt 0:08:48]} 21. Ne5 {[%emt 0:00:42]} Nxe5 {[%emt 0:00:31] Black is clearly winning.} 22. fxe5 {[%emt 0:00:05]} a5 {[%emt 0:00:07] ...Bb4 is the strong threat.} 23. a3 {[%emt 0:06:54] Against Bb4} c5 {[%emt 0:05:11] And now ...Qh3 would win.} 24. Qe3 {[%emt 0:00:42]} Qh3 {[%emt 0:02:02][%csl Gh5][%cal Rh3h2]} 25. Kf2 {[%emt 0:00:16]} Rf5+ {[%emt 0:00:33]} 26. Kg1 {[%emt 0:00:03]} d4 {[%emt 0:00:32]} 27. Qxe4 {[%emt 0:00:16]} Qxg3+ {[%emt 0:00:05]} 28. Qg2 {[%emt 0:00:05]} Qe3+ {[%emt 0:00:12]} 29. Rf2 {[%emt 0:00:06]} Rg5 {[%emt 0:00:14] Weighted Error Value: White=0.68/Black=0.02 (flawless)} 0-1

[Event "13th Asrian Memorial 2022"]
[Site "Yerevan"]
[Date "2022.06.10"]
[Round "4.7"]
[White "Petrosyan, Manuel"]
[Black "Chaqryan, Erik"]
[Result "1-0"]
[ECO "A26"]
[WhiteElo "2638"]
[BlackElo "2366"]
[Annotator "TA"]
[PlyCount "73"]
[EventDate "2022.06.07"]
[EventType "swiss"]
[EventCountry "ARM"]
[SourceTitle "playchess.com"]
[Source "ChessBase"]
[SourceQuality "1"]
[TimeControl "40/5400+30:1800+30"]

{[%evp 21,73,10,31,6,43,39,60,55,61,69,55,65,64,55,45,0,0,0,-3,-15,58,46,47,56,77,28,33,0,25,0,0,-10,0,0,0,0,0,-7,135,119,119,97,65,46,274,265,652,615,660,634,634,632,1240,1153]} 1. c4 {[%emt 0:14:05]} Nf6 {[%emt 0:00:20]} 2. Nc3 {[%emt 0:00:09]} e5 {[%emt 0:01:18]} 3. Nf3 {[%emt 0:00:09]} Nc6 {[%emt 0:00:31]} 4. d3 {[%emt 0:00:18]} g6 {[%emt 0:07:39]} 5. g3 {[%emt 0:00:41]} Bg7 {[%emt 0:00:10]} 6. Bg2 {[%emt 0:00:07]} O-O {[%emt 0:00:31]} 7. O-O {[%emt 0:00:13]} d6 {[%emt 0:00:47]} 8. Rb1 {[%emt 0:00:18]} h6 {[%emt 0:10:01]} 9. b4 {[%emt 0:01:01]} Ne7 {[%emt 0:00:05]} 10. a4 $5 {[%emt 0:09:15][%cal Ba2a4,Ba4a5,Ba5a6][%mdl 4] Leaves trodden paths.} Be6 {[%emt 0:01:33]} 11. b5 {[%emt 0:02:58]} Qd7 {[%emt 0:02:22]} 12. a5 $5 {[%emt 0:06:55][%mdl 4] Leaves trodden paths. A26: English Opening vs King's Indian with ...Nc6 and d3.} Bh3 {[%emt 0:13:14]} (12... a6 $5 {[%cal Ra6b5]}) 13. e4 {[%emt 0:07:04] [#]} Nh7 $146 {[%emt 0:24:09]} ({Predecessor:} 13... Bxg2 14. Kxg2 Nh5 15. Nd5 Nxd5 16. cxd5 f5 17. Nd2 Rf7 18. f3 Nf6 19. a6 b6 {½-½ (38) Gollain,M (2210)-Rene,B (2295) Paris 1991}) 14. a6 {[%emt 0:05:51] White is slightly better.} b6 {[%emt 0:01:38]} 15. d4 {[%emt 0:28:02]} Bxg2 16. Kxg2 exd4 17. Nxd4 c5 18. Nde2 (18. bxc6 $5 Nxc6 19. Nxc6 Qxc6 20. Nd5 $14) 18... f5 19. e5 Rad8 {[%emt 0:01:44][%cal Ba8d8,Bd8d6,Bd6e6][%mdl 32]} 20. exd6 {[%emt 0:05:13]} Qxd6 {[%emt 0:01:24]} (20... Nc8 $1 $11) 21. Qxd6 $14 {[%emt 0:00:50]} Rxd6 {[%emt 0:00:04]} 22. Bf4 {[%emt 0:00:14]} Re6 {[%emt 0:00:04]} 23. Rfd1 {[%emt 0:11:32]} (23. Rbd1 $16) 23... g5 $1 $11 {[%emt 0:00:30] Threatens to win with ...Bxc3.} 24. Bd6 {[%emt 0:01:03]} Re8 {[%emt 0:00:04]} 25. Rbc1 {[%emt 0:03:44]} Ng6 {[%emt 0:01:16]} 26. Bc7 {[%emt 0:02:59]} Nf6 {[%emt 0:12:30]} ({Much less strong is} 26... Rxe2 27. Nxe2 Rxe2 28. Rd8+ Nhf8 {[#]} 29. Bxb6 $1 {[%mdl 512]} axb6 30. a7 $16) 27. Rc2 {[%emt 0:04:02]} Rc8 {[%emt 0:03:17]} 28. Bd8 {[%emt 0:04:33]} Ne8 {[%emt 0:01:15]} 29. Na4 {[%emt 0:04:49]} Nh8 {[%emt 0:01:19]} (29... Bf6 $11 {remains equal.} 30. Bxf6 Nxf6) 30. Rd7 $16 {[%emt 0:01:41] Nec3 is the strong threat.} Nf7 {[%emt 0:00:12] [#]} 31. Bxb6 {[%emt 0:03:07][%mdl 512] White is more active.} axb6 {[%emt 0:00:06]} 32. Rb7 {[%emt 0:00:05]} Nfd6 $2 {[%emt 0:03:19] This costs Black the game.} (32... Rc7 $2 33. a7 Rxb7 34. a8=Q $18) (32... Ned6 $1 $14 33. Rxb6 (33. Nxb6 Rce8 $15) 33... Re7) 33. Nxb6 $18 {[%emt 0:02:38]} Nxb7 $2 {[%emt 0:01:42]} (33... Rd8) 34. Nxc8 {[%emt 0:00:06] White is clearly winning.} Nbd6 {[%emt 0:00:32] [#]} 35. b6 $1 {[%emt 0:01:32][%cal Bb5b6,Bb6b7][%mdl 32]} Nc7 {[%emt 0:00:15] [#]} 36. a7 {[%emt 0:00:22]} Nxc8 {[%emt 0:00:26]} (36... Na8 37. Nxd6) 37. b7 {[%emt 0:00:20] Weighted Error Value: White=0.10 (very precise) /Black=0.49} 1-0

[Event "13th Asrian Memorial 2022"]
[Site "Yerevan"]
[Date "2022.06.11"]
[Round "5.1"]
[White "Hayrapetyan, Hovik"]
[Black "Sargsyan, Shant"]
[Result "1/2-1/2"]
[ECO "D38"]
[WhiteElo "2484"]
[BlackElo "2641"]
[Annotator "TA"]
[PlyCount "54"]
[EventDate "2022.06.07"]
[EventType "swiss"]
[EventCountry "ARM"]
[SourceTitle "playchess.com"]
[Source "ChessBase"]
[SourceQuality "1"]
[TimeControl "40/5400+30:1800+30"]

{[%evp 13,54,0,7,9,18,18,6,0,0,2,43,27,28,20,23,16,36,-17,20,-12,0,0,0,0,0,0,0,0,0,0,0,0,0,0,0,0,0,-8,-2,-10,-5,-8,-10]} 1. d4 {[%emt 0:00:03]} Nf6 {[%emt 0:03:51]} 2. c4 {[%emt 0:00:24]} e6 {[%emt 0:00:45]} 3. Nc3 {[%emt 0:00:25]} Bb4 {[%emt 0:00:08]} 4. Nf3 {[%emt 0:00:25]} d5 {[%emt 0:00:34]} 5. Qa4+ {[%emt 0:00:34]} Nc6 {[%emt 0:00:18]} 6. a3 {[%emt 0:00:05]} Bxc3+ {[%emt 0:00:42]} 7. bxc3 {[%emt 0:00:04]} Bd7 {[%emt 0:00:49][%cal Oc6d4]} 8. cxd5 {[%emt 0:04:30] D38: Queen's Gambit Declined: Ragozin Defence (4 Nf3 Bb4).} exd5 {[%emt 0:00:12]} 9. Bg5 {[%emt 0:06:02]} h6 {[%emt 0:03:21]} 10. Bxf6 {[%emt 0:07:29]} Qxf6 {[%emt 0:00:10]} 11. e3 {[%emt 0:04:26] [#]} Qg6 $146 {[%emt 0:10:23]} ({Predecessor:} 11... O-O 12. Bd3 b6 13. O-O Qd6 14. Qc2 Rac8 15. c4 dxc4 16. Bxc4 Na5 17. Ba6 Rcd8 {1-0 (49) Duda,J (2760)-Giri,A (2772) chess24.com INT 2022}) 12. c4 {[%emt 0:05:34]} dxc4 {[%emt 0:05:51]} ({Less strong is} 12... Nxd4 13. Qxd7+ Kxd7 14. Ne5+ Ke6 15. Nxg6 Nc2+ 16. Kd2 Nxa1 17. cxd5+ Kxd5 18. e4+ Kd4 19. Nxh8 $16) 13. Qxc4 {[%emt 0:01:42]} O-O {[%emt 0:03:32]} 14. Rc1 {[%emt 0:24:32]} Rad8 {[%emt 0:03:16]} 15. g3 {[%emt 0:12:14]} (15. Qc3 $14) 15... Be6 {[%emt 0:12:10] The position is equal.} (15... Qh5 {is interesting.} 16. Bg2 Bg4 17. Ng1 Rfe8) 16. Qc2 {[%emt 0:04:29]} Bf5 {[%emt 0:12:10]} 17. Qc3 {[%emt 0:01:56]} Rfe8 {[%emt 0:11:13] [#] White must now prevent ...Qh5.} 18. Nh4 {[%emt 0:07:32]} Qf6 {[%emt 0:01:59][%cal Rc6d4] Threatens to win with ...Nxd4.} 19. Nxf5 {[%emt 0:00:25]} Qxf5 {[%emt 0:00:01]} 20. Bd3 {[%emt 0:01:57]} Qh3 {[%emt 0:00:06] ...Nxd4 is the strong threat.} 21. Bf1 {[%emt 0:03:21]} Qg4 {[%emt 0:07:00]} 22. Be2 {[%emt 0:00:42]} Qe4 {[%emt 0:00:21]} 23. O-O {[%emt 0:00:13]} Nxd4 {[%emt 0:00:15]} 24. exd4 {[%emt 0:00:11] [#] Strongly threatening Bf3.} Qxe2 {[%emt 0:00:04]} 25. Rfe1 {[%emt 0:01:20]} Qb5 {[%emt 0:06:16]} 26. Rxe8+ {[%emt 0:03:08]} Qxe8 {[%emt 0:00:09]} 27. Qxc7 {[%emt 0:00:09]} Qd7 {[%emt 0:01:56] Weighted Error Value: White=0.09 (flawless) /Black=0.07 (flawless)} 1/2-1/2